bitfinex/quotes_ETHUSD_20240717
["timestamp","ask_amount","ask_price","bid_price","bid_amount"]
[1721225325195,2.89133,3458.7,3457.4,2.89233]
[1721225325396,2.89094,3459.1,3457.5,0.839233]
[1721225325603,5.78177,3459.2,3457.8,2.89194]
[1721225325779,5.78177,3459.2,3457.9,3.44186]
[1721225325780,2.89086,3459.2,3457.9,3.44186]
[1721225326102,2.89094,3459.1,3457.9,0.55]
[1721225326295,2.89068,3459.4,3458.0,2.89182]
[1721225326296,0.520418,3459.3,3458.0,2.89182]
[1721225326495,2.8909,3459.2,3458.1,3.44175]
[1721225327386,2.8909,3459.2,3458.1,0.55]
[1721225327699,0.520418,3459.3,3457.4,2.3387]
[1721225327700,2.89109,3458.9,3457.9,0.55]
[1721225328203,2.89151,3458.4,3457.1,2.89259]
[1721225328357,2.3373,3459.3,3456.2,0.35012901]
[1721225328553,0.45343356,3459.7,3455.6,3.04]
[1721225328554,2.89235,3457.4,3455.6,3.04]
[1721225328754,2.89222,3457.6,3456.2,2.89331]
[1721225328997,2.89222,3457.6,3456.2,2.89334]
[1721225329152,2.3373,3457.8,3456.2,2.89334]
[1721225329153,3.0,3457.5,3456.2,2.89334]
[1721225329356,2.8921,3457.7,3456.1,2.89336]
[1721225329692,2.89233,3457.5,3456.1,2.89336]
[1721225329893,2.89233,3457.5,3455.4,5.37085]
[1721225329894,2.89275,3457.0,3455.6,2.89384]
[1721225330055,2.89275,3457.0,3455.7,2.8937]
[1721225330261,2.89257,3457.2,3455.9,2.89358]
[1721225330492,2.8926,3457.1,3455.7,2.89375]
[1721225330815,0.578504,3457.0,3455.9,2.89356]
[1721225331095,3.0,3457.6,3456.4,2.89314]
[1721225331280,3.0,3457.7,3456.5,2.89307]
[1721225331481,3.0,3457.7,3456.6,2.89301]
[1721225331799,2.89226,3457.5,3456.2,2.8933]
[1721225332000,3.481576,3457.4,3456.0,2.89348]
[1721225332183,3.481576,3457.4,3455.7,1.7]
[1721225332184,3.0,3457.3,3456.2,2.89334]
[1721225332368,3.0,3457.3,3456.3,0.55]
[1721225332692,3.589226,3457.4,3456.3,0.55]
[1721225332922,3.0,3457.4,3456.2,0.55]
[1721225333205,3.0,3457.6,3456.4,2.89317]
[1721225333412,3.0,3457.6,3456.5,0.55]
[1721225333558,2.3373,3457.8,3456.6,2.89297]
[1721225333900,5.3373,3457.8,3456.7,0.55]
[1721225334105,2.89243,3457.3,3456.6,0.55]
[1721225334258,3.0,3457.2,3456.6,0.55]
[1721225334687,3.0,3457.2,3456.3,0.55]
[1721225335014,5.89219,3457.6,3456.3,0.55]
[1721225335156,3.0,3457.6,3456.6,2.893]
[1721225335354,3.0,3457.6,3456.7,0.55]
[1721225335565,3.53373,3457.7,3456.7,0.55]
[1721225336297,0.87631,3457.6,3456.7,0.55]
[1721225337106,0.87631,3457.6,3456.6,0.55]
[1721225337271,2.8925,3457.3,3456.0,2.89344]
[1721225337605,2.89262,3457.1,3455.7,2.89372]
[1721225338161,2.89278,3456.9,3455.4,5.37091]
[1721225338475,3.289278,3456.8,3455.5,3.431011]
[1721225338873,3.289278,3456.8,3455.1,3.76246484]
[1721225338874,2.89321,3456.4,3455.1,3.76246484]
[1721225339403,2.4086,3456.7,3455.1,0.86821484]
[1721225339404,2.89341,3456.2,3455.1,0.86821484]
[1721225339586,2.89327,3456.3,3455.1,3.76247484]
[1721225339772,2.89352,3456.0,3454.8,2.424]
[1721225339955,5.89362,3455.9,3454.5,2.89475]
[1721225340161,5.89362,3455.9,3454.6,2.89463]
[1721225340383,5.89362,3455.9,3454.2,2.00109472]
[1721225340775,3.0,3455.9,3454.8,2.89446]
[1721225340971,2.4086,3456.7,3454.2,0.30109472]
[1721225340972,5.4086,3456.7,3454.2,2.00109472]
[1721225341177,2.89382,3455.7,3454.4,2.8948]
[1721225341379,2.89385,3455.6,3454.4,2.8948]
[1721225341573,3.0,3456.1,3454.2,4.89582601]
[1721225341574,2.89394,3455.5,3454.3,2.89493]
[1721225341777,2.8937,3455.8,3454.5,2.89476]
[1721225341967,0.28937,3455.7,3454.6,2.89467]
[1721225342177,3.0,3455.9,3454.9,2.89443]
[1721225342374,3.0,3456.1,3454.9,2.89443]
[1721225342581,2.89319,3456.4,3455.2,2.89413]
[1721225342582,3.0,3456.3,3455.2,2.89413]
[1721225342896,5.89327,3456.3,3455.2,2.89413]
[1721225343314,3.0,3456.3,3455.3,0.55]
[1721225343477,3.0,3456.4,3455.3,4.077936]
[1721225343669,2.4086,3456.7,3455.3,4.077936]
[1721225344004,5.30153,3456.7,3455.5,2.89392]
[1721225344173,2.89301,3456.6,3455.6,0.55]
[1721225344510,2.89293,3456.7,3455.6,0.55]
[1721225344667,3.5004288,3456.7,3455.6,0.55]
[1721225344868,0.289278,3456.8,3455.6,0.55]
[1721225345175,0.289278,3456.8,3455.7,2.89373]
[1721225345506,0.289278,3456.8,3455.8,0.55]
[1721225345678,2.89301,3456.6,3455.7,0.55]
[1721225345875,2.89301,3456.6,3455.5,0.55]
[1721225346313,2.89301,3456.6,3455.5,4.3860326]
[1721225346773,3.182158,3456.8,3455.5,4.3860326]
[1721225347111,2.89315,3456.5,3455.5,1.4921026]
[1721225347319,3.0,3456.7,3455.5,0.55]
[1721225347524,2.89304,3456.6,3455.4,0.55]
[1721225347836,2.89358,3456.0,3454.7,2.89457]
[1721225348129,3.182938,3456.0,3454.8,3.79423606]
[1721225348617,2.89361,3455.9,3454.8,0.89971606]
[1721225348826,3.182938,3456.0,3454.8,3.79417606]
[1721225349128,2.8936,3455.9,3454.8,3.79417606]
[1721225349288,2.89368,3455.8,3454.6,2.4288]
[1721225349490,2.89382,3455.7,3454.6,5.32348]
[1721225349731,0.6076318,3455.9,3454.6,5.32348]
[1721225349886,2.89369,3455.8,3454.6,5.32348]
[1721225350087,2.89369,3455.8,3454.7,2.8946]
[1721225350498,2.89369,3455.8,3454.7,3.79431306]
[1721225350698,2.89369,3455.8,3454.8,0.55]
[1721225350940,2.89376,3455.7,3454.8,0.55]
[1721225351132,3.5012818,3455.9,3454.8,0.55]
[1721225351294,2.89369,3455.8,3454.8,0.55]
[1721225351488,2.89378,3455.7,3454.8,0.55]
[1721225351840,2.89396,3455.5,3454.3,2.89488]
[1721225351982,2.89396,3455.5,3454.3,0.30097783]
[1721225351983,2.8941,3455.3,3454.3,0.30097783]
[1721225352183,2.89427,3455.1,3454.3,0.30097783]
[1721225352416,2.89444,3454.9,3454.3,0.30097783]
[1721225352582,0.578871,3454.8,3454.3,0.30097783]
[1721225352781,3.473401,3454.8,3454.3,0.30097783]
[1721225353228,0.578871,3454.8,3454.3,0.30097783]
[1721225353396,2.89436,3455.0,3454.3,0.30097783]
[1721225353596,2.89402,3455.4,3454.3,0.30097783]
[1721225353825,3.0,3455.3,3454.3,0.30097783]
[1721225354117,3.0,3455.3,3454.3,3.19588783]
[1721225354323,2.89402,3455.4,3454.4,0.60909178]
[1721225354527,3.0,3455.3,3454.5,0.55]
[1721225354731,3.0,3455.5,3454.6,2.89462]
[1721225354933,3.0,3455.6,3454.7,3.4446]
[1721225355140,9.7387,3456.4,3454.8,2.89444]
[1721225355141,3.0,3455.9,3454.8,2.89444]
[1721225355293,5.20188,3456.4,3454.9,0.55]
[1721225355294,3.0,3456.2,3454.9,0.55]
[1721225355495,0.53087,3456.1,3454.9,0.55]
[1721225355726,2.89302,3456.6,3455.2,2.89417]
[1721225355894,10.32276,3456.9,3455.3,0.55]
[1721225356098,2.89277,3456.9,3455.7,2.89371]
[1721225356302,2.89277,3456.9,3455.8,1.128749]
[1721225356552,5.20121,3457.2,3455.8,4.022419]
[1721225356842,2.8926,3457.1,3455.9,2.89354]
[1721225356996,2.8926,3457.1,3455.8,6.384319]
[1721225356997,2.89246,3457.3,3456.0,3.44343]
[1721225357203,2.89246,3457.3,3456.1,2.89341]
[1721225357433,2.89246,3457.3,3456.2,1.128684]
[1721225357744,2.8923,3457.5,3456.2,1.128684]
[1721225357900,2.89248,3457.3,3456.2,0.55]
[1721225358212,2.89282,3456.9,3455.6,2.89383]
[1721225358405,2.89282,3456.9,3455.7,0.55]
[1721225358622,3.289282,3456.8,3455.0,2.89435]
[1721225358834,2.89327,3456.3,3455.1,2.8942]
[1721225359005,2.89327,3456.3,3454.9,2.89443]
[1721225359321,3.289282,3456.8,3454.5,2.89472]
[1721225359322,2.89378,3455.7,3454.5,2.89472]
[1721225359531,0.578754,3455.6,3454.6,2.89462]
[1721225359714,2.89369,3455.8,3454.6,2.89462]
[1721225359914,2.89365,3455.9,3454.7,2.89453]
[1721225360113,3.697508,3455.9,3454.4,2.8948]
[1721225360314,2.89382,3455.7,3454.3,0.30097783]
[1721225360503,2.89382,3455.7,3454.4,2.89485]
[1721225361032,3.0,3455.8,3454.5,5.78946]
[1721225361233,2.8939,3455.6,3454.3,3.19588783]
[1721225361397,2.89397,3455.5,3454.3,1.31415461]
[1721225361602,2.89427,3455.1,3454.3,0.30097783]
[1721225362140,0.9591558,3455.6,3454.3,0.30097783]
[1721225362141,2.89407,3455.4,3454.3,0.30097783]
[1721225364235,5.89379,3455.7,3454.6,0.55]
[1721225364538,5.89379,3455.7,3454.4,0.30067205]
[1721225364539,2.89428,3455.1,3454.4,0.30067205]
[1721225364851,0.289428,3455.0,3454.1,2.8951]
[1721225365138,3.0,3455.7,3454.1,3.19579655]
[1721225365352,2.89416,3455.3,3454.1,3.19579655]
[1721225365517,2.89423,3455.2,3454.1,3.19579655]
[1721225365901,2.89396,3455.5,3454.2,0.05789236]
[1721225366098,3.0,3455.4,3454.1,3.19579655]
[1721225366301,0.3,3455.3,3454.1,3.19579655]
[1721225366529,2.89402,3455.4,3454.2,0.55]
[1721225366697,2.8942,3455.2,3454.2,0.55]
[1721225366903,2.89402,3455.4,3454.2,0.55]
[1721225366904,5.89388,3455.6,3454.2,1.21410365]
[1721225367139,3.0,3455.6,3454.6,2.89468]
[1721225367302,3.0,3455.6,3454.7,0.55]
[1721225367507,2.89377,3455.7,3454.7,0.55]
[1721225367844,3.0,3455.6,3454.7,0.55]
[1721225368017,2.89345,3456.1,3454.8,0.344468]
[1721225368203,2.89345,3456.1,3454.9,0.55]
[1721225368407,2.89356,3456.0,3454.9,0.55]
[1721225368750,2.8933,3456.3,3454.9,0.55]
[1721225368751,2.89328,3456.3,3455.2,2.89418]
[1721225369042,2.89327,3456.3,3455.3,0.55]
[1721225369242,2.89312,3456.5,3455.4,0.05787456]
[1721225369430,3.7397742,3456.5,3455.5,0.55]
[1721225369632,0.8466542,3456.5,3455.5,0.55]
[1721225370151,2.3911,3456.8,3455.5,0.55]
[1721225370301,2.89254,3457.2,3455.8,2.89361]
[1721225370501,2.89254,3457.2,3456.0,2.8935]
[1721225370703,5.35857,3457.8,3455.9,0.55]
[1721225370704,2.89249,3457.3,3456.1,2.89343]
[1721225371015,2.89228,3457.5,3456.2,0.55]
[1721225371345,2.4665,3457.8,3456.2,0.55]
[1721225371346,6.073998,3457.4,3456.2,0.55]
[1721225371569,3.181588,3457.4,3456.2,0.55]
[1721225371854,2.89256,3457.2,3456.2,0.55]
[1721225372141,0.289228,3457.4,3455.5,2.89393]
[1721225372304,2.89264,3457.1,3455.7,2.89372]
[1721225372500,2.89294,3456.7,3455.8,0.55]
[1721225372725,2.89294,3456.7,3455.6,3.44385]
[1721225372946,3.0,3456.6,3455.6,3.44385]
[1721225373178,3.0,3456.6,3455.6,4.479098]
[1721225374034,3.0,3456.6,3455.7,2.89376]
[1721225374234,2.89302,3456.6,3455.8,0.55]
[1721225374433,2.89302,3456.6,3455.6,0.55]
[1721225374733,2.89302,3456.6,3455.2,2.89418]
[1721225374734,3.0,3456.5,3455.2,2.89418]
[1721225374932,5.8931,3456.5,3455.2,2.89418]
[1721225375109,0.9106479,3456.4,3455.2,3.47303]
[1721225375313,2.89343,3456.1,3455.0,2.89434]
[1721225375550,0.9106479,3456.4,3454.8,2.3839]
[1721225375551,2.89374,3455.8,3454.8,2.3839]
[1721225375864,3.8038779,3456.4,3454.5,0.30078225]
[1721225375865,2.89395,3455.5,3454.5,0.30078225]
[1721225376042,5.89408,3455.4,3454.2,2.89497]
[1721225376355,3.0,3455.4,3454.3,0.30082968]
[1721225376507,3.0,3455.4,3454.3,2.89493]
[1721225376853,5.89405,3455.4,3454.3,3.19576658]
[1721225377036,2.89416,3455.3,3454.3,0.30083658]
[1721225377254,2.89416,3455.3,3454.1,2.3343]
[1721225377255,2.89416,3455.3,3454.2,2.89502]
[1721225377763,2.89416,3455.3,3454.1,2.3343]
[1721225377764,2.89419,3455.2,3454.1,2.3343]
[1721225377924,5.89419,3455.2,3454.0,2.89519]
[1721225378555,3.0,3455.2,3454.1,2.89504]
[1721225378857,5.89423,3455.2,3454.1,0.579023]
[1721225379019,5.89423,3455.2,3454.1,2.8951]
[1721225379223,5.89423,3455.2,3454.2,0.55]
[1721225379637,2.89429,3455.1,3454.2,0.55]
[1721225379950,2.89429,3455.1,3454.0,2.89518]
[1721225379951,2.89429,3455.1,3454.1,0.55]
[1721225380160,2.89429,3455.1,3453.9,0.55]
[1721225380318,2.89429,3455.1,3453.7,0.30040835]
[1721225380319,2.89456,3454.8,3453.7,3.19583835]
[1721225380753,2.89456,3454.8,3453.7,0.30040835]
[1721225380926,3.0,3454.7,3453.7,2.89543]
[1721225381120,5.8945,3454.9,3453.7,2.89543]
[1721225381333,5.8945,3454.9,3453.8,0.821142]
[1721225381918,3.0,3454.9,3453.9,2.89519]
[1721225382120,3.0,3455.0,3454.0,2.89519]
[1721225382326,5.89423,3455.2,3454.1,0.55]
[1721225382637,3.0,3455.2,3454.1,3.4451]
[1721225382831,2.89428,3455.1,3454.1,1.2661572]
[1721225383045,3.0,3455.0,3454.1,1.2661572]
[1721225383357,3.0,3455.0,3454.1,0.55]
[1721225384267,3.0,3455.1,3454.1,3.4451]
[1721225384433,5.89412,3455.3,3454.1,3.4451]
[1721225385179,2.89396,3455.5,3454.4,2.8948]
[1721225385180,2.89401,3455.5,3454.4,2.8948]
[1721225385375,2.89401,3455.5,3454.5,0.55]
[1721225385376,0.524531,3455.4,3454.5,0.55]
[1721225385735,0.524531,3455.4,3453.9,2.89525]
[1721225385929,2.3513,3455.7,3454.0,0.55]
[1721225386267,2.89414,3455.3,3454.1,2.89511]
[1721225386475,5.89424,3455.2,3454.2,0.55]
[1721225387166,3.0,3455.2,3454.4,2.89481]
[1721225387373,3.0,3455.5,3454.6,2.8946]
[1721225387530,2.3513,3455.7,3454.5,4.07872]
[1721225387531,2.89377,3455.7,3454.7,3.4446]
[1721225387733,3.0,3455.6,3454.7,2.8946]
[1721225387939,2.89415,3455.3,3454.5,0.55]
[1721225388276,2.89394,3455.5,3454.3,3.44493]
[1721225388431,3.0,3455.6,3454.6,2.89468]
[1721225388636,3.0,3455.6,3454.7,0.55]
[1721225389678,2.89403,3455.4,3454.5,0.55]
[1721225390269,2.8941,3455.3,3454.5,0.55]
[1721225390469,2.89427,3455.1,3453.9,2.89521]
[1721225390650,2.89446,3454.9,3453.8,2.3056]
[1721225391001,0.289427,3455.0,3453.9,5.7904]
[1721225391132,2.89427,3455.1,3455.0,3.710573]
[1721225391565,2.89401,3455.5,3455.0,3.710573]
[1721225391782,3.0,3455.6,3455.0,3.710573]
[1721225392078,3.0,3455.6,3455.0,2.75863657]
[1721225395854,4.40719677,3456.0,3455.0,2.75863657]
[1721225396073,0.44071968,3455.9,3455.0,2.75863657]
[1721225396272,2.89375,3455.8,3455.0,2.75863657]
[1721225396575,2.8928,3456.9,3455.4,2.89394]
[1721225396779,1.51340196,3456.7,3455.6,2.89384]
[1721225396988,1.65450443,3456.7,3455.7,0.05786754]
[1721225397182,4.40609196,3457.0,3455.8,0.55]
[1721225397338,2.89269,3457.0,3455.9,0.0578658]
[1721225397684,2.3046,3457.1,3455.9,0.0578658]
[1721225397685,2.3046,3457.1,3456.0,0.55]
[1721225397835,1.51340196,3457.3,3456.0,3.4435]
[1721225398035,2.89243,3457.3,3456.1,2.89337]
[1721225398273,0.4405832,3457.2,3456.2,0.55]
[1721225398482,3.3331032,3457.2,3456.2,0.55]
[1721225398682,0.4405832,3457.2,3456.2,0.55]
[1721225399030,3.4405832,3457.2,3456.2,0.55]
[1721225399475,6.3330932,3457.2,3456.2,0.55]
[1721225399658,0.92255232,3457.1,3456.2,0.55]
[1721225400362,0.92255232,3457.1,3455.2,2.89413]
[1721225400572,2.89328,3456.3,3455.2,2.89413]
[1721225400871,2.89304,3456.6,3455.4,2.89401]
[1721225401070,2.89323,3456.4,3455.4,2.89401]
[1721225401435,3.0,3456.3,3455.4,2.89401]
[1721225401636,3.0,3456.4,3455.6,2.89377]
[1721225401845,3.0,3456.9,3455.8,2.89368]
[1721225402494,0.92255232,3457.1,3455.2,1.7]
[1721225402495,0.92255232,3457.1,3455.9,0.05786606]
[1721225402775,4.51233921,3457.3,3456.2,2.89333]
[1721225402776,3.0,3457.3,3456.2,2.89333]
[1721225403094,2.89225,3457.6,3456.4,2.89313]
[1721225403453,2.89249,3457.3,3456.5,0.55]
[1721225403696,0.289249,3457.2,3456.2,2.89333]
[1721225403917,0.289249,3457.2,3456.3,0.55]
[1721225404125,1.51233921,3457.8,3456.3,3.44325]
[1721225404291,2.89193,3457.9,3456.6,2.893]
[1721225404631,7.15585292,3457.8,3456.7,0.55]
[1721225404830,2.89218,3457.6,3456.7,0.55]
[1721225404991,2.89218,3457.6,3456.2,2.89333]
[1721225404992,3.0,3457.5,3456.5,3.44309]
[1721225405329,3.0,3457.5,3456.5,0.55]
[1721225405625,0.58922,3457.4,3456.5,2.89309]
[1721225405796,0.58922,3457.4,3456.6,0.55]
[1721225406287,0.58922,3457.4,3456.3,2.89325]
[1721225406288,3.48157,3457.4,3456.4,0.55]
[1721225406492,3.0,3457.3,3456.4,0.55]
[1721225407349,0.58922,3457.4,3456.5,0.05785601]
[1721225407645,2.89186,3458.0,3456.7,2.89292]
[1721225407857,1.51055798,3458.3,3456.7,2.89292]
[1721225407858,11.83156665,3458.4,3456.8,2.95067744]
[1721225408156,2.89157,3458.4,3457.1,2.89257]
[1721225408440,6.83824665,3458.6,3457.2,0.60784297]
[1721225408441,3.86457167,3458.3,3457.2,0.60784297]
[1721225408648,0.97298167,3458.3,3457.2,0.60784297]
[1721225408807,2.89152,3458.4,3457.2,0.55]
[1721225409010,2.89119,3458.8,3457.4,2.89227]
[1721225409205,2.89127,3458.7,3457.5,0.55]
[1721225409454,2.89125,3458.8,3457.5,0.55]
[1721225409608,0.289125,3458.7,3457.5,3.44224]
[1721225409946,2.4369,3459.1,3457.8,2.89198]
[1721225409947,5.32784,3459.1,3457.8,2.89198]
[1721225410149,7.43,3459.5,3458.1,2.89174]
[1721225410352,2.89101,3459.0,3457.7,2.89207]
[1721225410655,2.89122,3458.8,3457.8,0.55]
[1721225410807,2.89122,3458.8,3456.8,4.7]
[1721225410808,2.8919,3458.0,3456.5,7.37]
[1721225411014,2.89211,3457.7,3456.2,2.89328]
[1721225411256,2.89243,3457.3,3456.3,2.89326]
[1721225411407,2.89268,3457.0,3455.9,5.15202]
[1721225411604,2.89268,3457.0,3456.0,2.8935]
[1721225411839,2.89268,3457.0,3455.9,2.2585]
[1721225412045,2.89323,3456.4,3455.3,2.2759]
[1721225412248,3.287,3456.5,3454.9,7.37]
[1721225412446,2.89332,3456.3,3455.0,2.75863657]
[1721225412743,3.287,3456.5,3455.0,2.75863657]
[1721225412744,2.89379,3455.7,3455.0,2.75863657]
[1721225412944,0.289379,3455.6,3455.0,2.75863657]
[1721225413150,3.289379,3455.6,3455.0,2.75863657]
[1721225413452,0.289379,3455.6,3455.0,2.75863657]
[1721225413619,5.89401,3455.5,3455.0,2.75863657]
[1721225413827,3.0,3455.5,3455.0,2.75863657]
[1721225414146,0.289379,3455.6,3455.0,2.75863657]
[1721225414147,3.2229679,3455.4,3455.0,2.75863657]
[1721225414444,3.0,3455.7,3455.0,2.75863657]
[1721225414653,2.89369,3455.8,3455.0,2.75863657]
[1721225414869,5.89353,3456.0,3455.0,2.75863657]
[1721225414870,3.0,3455.7,3455.0,2.75863657]
[1721225415006,3.0,3456.0,3455.0,2.75863657]
[1721225415209,3.483024,3455.9,3455.0,2.75863657]
[1721225415407,2.89396,3455.5,3455.0,2.75863657]
[1721225415852,2.89424,3455.2,3455.0,2.75863657]
[1721225416075,3.0,3455.1,3455.0,2.75863657]
[1721225416210,3.0,3455.8,3455.0,2.75863657]
[1721225416413,5.3307,3456.4,3455.0,3.32395123]
[1721225416767,5.89338,3456.2,3455.0,2.81651524]
[1721225417052,2.432,3457.0,3455.4,2.89401]
[1721225417352,2.432,3457.0,3455.7,2.89374]
[1721225417353,2.8927,3457.0,3455.7,2.89374]
[1721225417522,2.89243,3457.3,3455.9,2.89353]
[1721225417729,2.89226,3457.5,3456.3,2.89326]
[1721225418018,2.89253,3457.2,3455.8,2.89367]
[1721225418218,3.181853,3457.1,3455.9,1.12875]
[1721225418423,2.89277,3456.9,3455.9,1.12875]
[1721225418848,2.8921,3457.7,3455.9,1.12875]
[1721225419063,2.89234,3457.4,3456.2,2.89328]
[1721225419209,2.89227,3457.5,3456.3,0.55]
[1721225419411,0.289227,3457.4,3456.4,0.05785551]
[1721225419648,2.89227,3457.5,3456.5,0.55]
[1721225419962,2.8924,3457.4,3456.5,0.55]
[1721225420161,2.89244,3457.3,3456.4,0.55]
[1721225420311,2.89229,3457.5,3456.2,3.44329]
[1721225420645,0.28919,3457.9,3456.8,2.89278]
[1721225420947,2.89215,3457.7,3456.9,0.55]
[1721225421247,2.89227,3457.5,3456.9,0.55]
[1721225421450,0.28919,3457.9,3456.5,2.89308]
[1721225421451,3.18113,3457.9,3456.5,2.89308]
[1721225421752,2.89201,3457.8,3456.6,3.44299]
[1721225421956,2.89218,3457.6,3456.6,0.55]
[1721225422255,3.0,3457.5,3456.6,3.443]
[1721225422480,3.0,3457.7,3456.7,2.89291]
[1721225422788,7.43,3458.6,3457.1,2.89257]
[1721225423091,2.89126,3458.7,3457.2,2.9503351]
[1721225423251,2.89126,3458.7,3457.4,2.89226]
[1721225423252,3.180386,3458.7,3457.4,2.89226]
[1721225423452,0.289126,3458.7,3457.5,3.44224]
[1721225423657,9.795,3459.5,3457.8,2.89199]
[1721225423658,2.89101,3459.0,3457.8,2.89199]
[1721225423858,2.89109,3458.9,3457.9,0.55]
[1721225424268,2.89099,3459.1,3457.9,0.55]
[1721225424477,2.89148,3458.5,3457.4,2.3773]
[1721225424678,2.89151,3458.4,3457.5,1.12347435]
[1721225424975,2.89138,3458.6,3457.5,1.12347435]
[1721225425204,3.0,3458.5,3457.5,1.12347435]
[1721225425399,3.0,3458.8,3457.5,1.12347435]
[1721225425695,3.0,3458.8,3457.5,0.55]
[1721225425840,2.89181,3458.1,3456.8,12.65852]
[1721225426041,3.0,3458.7,3457.3,2.89241]
[1721225426236,7.43,3459.0,3457.4,0.55]
[1721225426441,5.89109,3458.9,3457.7,2.89208]
[1721225426662,5.89109,3458.9,3457.8,0.55]
[1721225426663,3.480279,3458.8,3457.8,0.55]
[1721225426939,3.0,3458.7,3457.8,0.55]
[1721225427389,0.589109,3458.8,3457.8,0.55]
[1721225427684,0.589109,3458.8,3457.6,0.55]
[1721225427995,2.89092,3459.1,3457.9,2.89191]
[1721225428155,2.89092,3459.1,3458.0,0.55]
[1721225428341,2.89078,3459.3,3458.1,0.05782722]
[1721225428550,10.3203,3459.9,3458.2,0.55]
[1721225428867,2.89055,3459.6,3458.2,0.55]
[1721225429084,2.89086,3459.2,3457.9,0.55]
[1721225429441,2.89109,3458.9,3457.9,0.55]
[1721225429761,7.43,3459.9,3457.9,5.3]
[1721225429971,2.89042,3459.7,3458.6,2.2598]
[1721225430173,2.89042,3459.7,3458.7,0.55]
[1721225430377,4.20012126,3459.8,3458.7,0.55]
[1721225430692,2.89009,3460.1,3458.9,2.89107]
[1721225430988,2.89009,3460.1,3458.7,0.55]
[1721225430989,2.89023,3460.0,3459.0,0.55]
[1721225431156,2.89025,3459.9,3458.7,3.44118]
[1721225431358,0.4533206,3460.6,3458.7,0.55]
[1721225431559,2.89057,3459.6,3458.7,0.55]
[1721225431859,2.94268559,3459.5,3458.7,0.55]
[1721225432078,0.05207559,3459.5,3458.7,3.44125]
[1721225432307,0.05207559,3459.5,3458.8,2.89114]
[1721225432460,0.05207559,3459.5,3458.9,0.55]
[1721225432661,3.0,3459.8,3458.9,0.55]
[1721225432863,0.05233059,3459.4,3458.9,1.409226]
[1721225433175,5.89032,3459.9,3458.9,1.409226]
[1721225433176,0.05229356,3459.3,3459.0,0.0578122]
[1721225433487,12.64376,3460.8,3459.2,2.89084]
[1721225433667,2.88936,3461.0,3459.1,0.55]
[1721225433668,2.88936,3461.0,3459.8,2.89034]
[1721225433877,2.88936,3461.0,3459.9,0.55]
[1721225434184,2.88902,3461.4,3460.0,2.94789708]
[1721225434493,2.88926,3461.1,3460.1,0.55]
[1721225434857,2.88916,3461.3,3460.2,0.05779207]
[1721225435111,2.88916,3461.3,3460.3,0.55]
[1721225435112,2.88919,3461.2,3460.3,0.55]
[1721225435413,0.577835,3461.1,3460.3,0.55]
[1721225435568,2.88926,3461.1,3460.3,0.55]
[1721225435755,2.88941,3461.0,3460.1,0.55]
[1721225435955,7.43,3461.7,3459.0,9.8665]
[1721225436172,2.88871,3461.8,3459.0,2.4965]
[1721225436173,2.89009,3460.1,3459.0,2.4965]
[1721225436390,3.179199,3460.0,3459.0,2.4965]
[1721225436755,2.89039,3459.8,3458.5,2.8914]
[1721225437099,2.89056,3459.6,3458.6,4.0]
[1721225437351,2.89056,3459.6,3458.4,5.35939]
[1721225437472,3.0,3459.9,3458.7,2.89119]
[1721225437993,5.89025,3459.9,3458.7,2.89119]
[1721225438184,2.89034,3459.8,3458.7,2.89119]
[1721225438402,3.0,3459.7,3458.8,0.55]
[1721225438564,3.0,3459.7,3458.7,0.55]
[1721225438565,0.889034,3459.6,3458.7,0.55]
[1721225438767,3.0,3459.7,3458.7,3.44121]
[1721225438998,5.89026,3459.9,3458.7,3.44121]
[1721225439507,3.0,3459.9,3458.8,2.89117]
[1721225439713,2.88969,3460.6,3459.3,2.89073]
[1721225439858,0.577929,3460.5,3459.4,3.44066]
[1721225440261,3.577929,3460.5,3459.4,3.44066]
[1721225440457,3.0,3460.5,3459.4,3.44066]
[1721225440702,2.88955,3460.8,3459.6,2.89043]
[1721225440870,0.04902075,3460.4,3459.7,0.55]
[1721225441073,5.8896,3460.7,3459.7,0.55]
[1721225441260,0.04887892,3460.3,3459.8,2.89033]
[1721225441467,3.0,3460.9,3459.9,0.55]
[1721225441696,0.04898838,3460.2,3459.9,0.55]
[1721225442012,3.0,3460.9,3459.9,0.55]
[1721225442302,2.88848,3462.1,3459.9,0.55]
[1721225442303,0.04942281,3460.8,3460.4,2.88982]
[1721225442463,0.04942281,3460.8,3460.5,3.49751379]
[1721225442665,2.3278,3462.1,3460.7,2.88951]
[1721225442666,2.88858,3461.9,3460.7,2.88951]
[1721225442908,2.88842,3462.1,3460.9,2.8894]
[1721225443090,2.88842,3462.1,3460.8,0.55]
[1721225443091,0.04773893,3461.8,3461.0,3.43933]
[1721225443294,0.04455837,3462.0,3461.1,0.05777721]
[1721225443465,0.0444474,3461.7,3461.1,3.43925]
[1721225443664,2.88811,3462.5,3461.4,2.88898]
[1721225443871,2.88811,3462.5,3461.5,0.55]
[1721225444083,0.04479207,3462.4,3461.5,0.55]
[1721225444581,2.88775,3462.9,3461.5,0.55]
[1721225444776,2.88767,3463.0,3461.6,2.88883]
[1721225444985,2.88767,3463.0,3461.7,3.43875]